Cogmind - Beta 13 @@@ ROGUE MODE // 2024.05.07 @ 00:44:57 Player: Meadow Evergreen Result: Destroyed by G-34 Mercenary with Small Laser Performance ------------- Evolutions (0) 0 Regions Visited (2) 400 Robots Destroyed (8) 40 Value Destroyed (165) 165 Prototype IDs (0) 0 Alien Tech Used (0) 0 Bonus (0) 0 TOTAL SCORE: 605 Bonus ------- None Cogmind --------- Core Integrity 0/250 Matter 101/450 Energy 100/100 System Corruption 0% Temperature Cool (6) Movement Core (400) Ox7 Location -10/Mines Parts ------- > --- POWER (1) -------- (None) > --- PROPULSION (2) --- (None) > --- UTILITY (2) ------ Large Storage Unit Large Matter Pod > --- WEAPON (2) ------- (None) > --- INVENTORY (15) --- Ion Engine Light Ion Engine Light Treads Light Treads Small Matter Pod (0) Medium Laser Assault Rifle Light Assault Rifle Peak State ------------ > --- POWER ------------ Ion Engine > --- PROPULSION ------- Aluminum Leg Aluminum Leg > --- UTILITY ---------- Large Storage Unit Small Matter Pod > --- WEAPON ----------- Assault Rifle Light Cannon > --- INVENTORY -------- Ion Engine Light Treads Light Treads Medium Laser Light Assault Rifle Grenade Launcher [Rating: 7] Favorites ----------- Power Ion Engine Engine Ion Engine Propulsion Aluminum Leg Leg Aluminum Leg Utility Large Storage Unit Storage Large Storage Unit Weapon Light Cannon Energy Gun Medium Laser Ballistic Gun Assault Rifle Ballistic Cannon Light Cannon Launcher Grenade Launcher Build | -11 -10 -10 ------- Run | Yrd Mat Min Slots Evolved . | . . . Power . | . . . Propulsion . | . . . Utility . | . . . Weapon . | . . . Parts Attached 13 | 6 7 . Power 2 | 1 1 . Engine 2 | 1 1 . Core . | . . . Reactor . | . . . Propulsion 2 | 2 . . Treads . | . . . Leg 2 | 2 . . Wheel . | . . . Hover . | . . . Flight . | . . . Utility 4 | 1 3 . Device . | . . . Storage 4 | 1 3 . Processor . | . . . Hackware . | . . . Protection . | . . . Artifact . | . . . Weapon 5 | 2 3 . Energy Gun 1 | 1 . . Energy Cannon . | . . . Ballistic Gun 1 | 1 . . Ballistic Cannon 1 | . 1 . Launcher 2 | . 2 . Special Weapon . | . . . Impact Weapon . | . . . Slashing Weapon . | . . . Piercing Weapon . | . . . Special Melee Weapon . | . . . Unidentified Prototypes . | . . . Parts Lost 5 | . . 5 Power 1 | . . 1 Propulsion 2 | . . 2 Utility . | . . . Weapon 2 | . . 2 Highest Loss Streak 5 | . . 5 To Critical Strikes 1 | . . 1 Average Slot Usage (%) 94 | . 95 85 Engine 14 | . 14 14 Leg 27 | . 28 21 Storage 24 | . 24 28 Ballistic Gun 6 | . 6 . Ballistic Cannon 10 | . 11 9 Launcher 10 | . 10 11 Naked Turns . | . . . Heaviest Build 34 | 14 34 34 Greatest Support 20 | 20 20 20 Greatest Overweight (x) 3 | . 1 3 Average Overweight (x) . | . . 1 Largest Inventory Capacity 15 | 8 15 15 Average Capacity 13 | 7 14 15 Most Carried 8 | 5 8 8 Average Carried 6 | 3 6 8 Final Capacity 15 | 8 15 15 Final Carried 8 | 4 8 8 Class Distribution -------------------- 100% | Mutant Dominant Class ---------------- Mutant | -10/Materials Mutant | -10/Mines Resources | -11 -10 -10 ----------- Run | Yrd Mat Min Matter Collected 382 | 224 111 47 Remotely . | . . . Salvage Created 131 | . 98 33 Parts 10 | . 10 . Haulers Intercepted . | . . . Recyclers Shooed 1 | . 1 . Parts Field Recycled . | . . . Retrieved Matter . | . . . Parts Self-Destructed . | . . . Prevented . | . . . Kills | -11 -10 -10 ------- Run | Yrd Mat Min Combat Hostiles Destroyed 11 | . 5 6 Guns 1 | . 1 . Cannons 3 | . 2 1 AOE 7 | . 2 5 Classes Destroyed 5 | . 4 1 Builder 1 | . 1 . Watcher 2 | . 2 . Swarmer 3 | . 3 . Grunt 2 | . 2 . Assembled 6 | . . 6 Best Kill Streak 6 | . 3 6 Combat Bots Only 6 | . 2 6 Max Kills in Single Turn 2 | . 2 2 Gunslinging . | . . . Exploded 2 | . 1 2 Melee . | . . . Uniques/NPCs Destroyed . | . . . Combat | -11 -10 -10 -------- Run | Yrd Mat Min Hostile Shots Fired 75 | . 28 47 Missed 20 | . 8 12 Damage Taken 769 | . 209 560 Core 253 | . 54 199 Absorbed by Shields . | . . . Core Remaining (%) 100 | 100 . . Volleys Fired 29 | . 26 3 Largest 2 | . 2 2 Hottest 65 | . 65 65 Shots Fired 53 | . 47 6 Gun 8 | . 8 . Cannon 29 | . 26 3 Launcher 16 | . 13 3 Special . | . . . Kinetic 37 | . 34 3 Thermal . | . . . Explosive 16 | . 13 3 Electromagnetic . | . . . Robot Hit Streak 5 | . 3 5 Robot Miss Streak 9 | . 9 3 Penetration Max . | . . . Secondary Targets . | . . . Shots Hit Robots 18 | . 15 3 Core Hits 28 | . 9 19 Critical Kills . | . . . Critical Parts Destroyed . | . . . Critical Strikes . | . . . Melee Attacks . | . . . Impact . | . . . Slashing . | . . . Piercing . | . . . Sneak Attacks . | . . . Combat Hostiles . | . . . Follow-up Attacks . | . . . Damage Inflicted 983 | . 522 461 Guns 39 | . 39 . Cannons 213 | . 175 38 Explosions 726 | . 308 418 Melee . | . . . Ramming 5 | . . 5 Kinetic 252 | . 214 38 Thermal . | . . . Explosive 726 | . 308 418 Electromagnetic . | . . . Impact . | . . . Slashing . | . . . Piercing . | . . . Highest Corruption . | . . . Average Corruption . | . . . Corruption Purged . | . . . Corruption Blocked . | . . . Overload Shots . | . . . Overflow Damage 33 | . 21 12 Projectiles . | . . . Explosions 33 | . 21 12 Melee . | . . . Knockbacks 5 | . 4 1 Impact . | . . . Kinetic 5 | . 4 1 Secondary . | . . . Self-Inflicted Damage 37 | . 31 6 Shots 3 | . 2 1 Rammed 1 | . . 1 Targets Rammed 5 | . . 5 Kicked 4 | . . 4 Crushed . | . . . Highest Temperature 49 | . 12 49 Average Temperature 7 | . 4 18 Received Heat Transfer 274 | . 24 250 Siege Activations . | . . . Robots Corrupted . | . . . Combat Hostiles . | . . . Parts Fried . | . . . Impact Corruptions . | . . . Robots Melted . | . . . Combat Hostiles . | . . . Parts Melted . | . . . Heat Transferred . | . . . Parts Sabotaged . | . . . Parts Stolen . | . . . Parts Stripped . | . . . Power Chain Reactions . | . . . Alert | -11 -10 -10 ------- Run | Yrd Mat Min Peak Influence 241 | . 241 52 Initial 35 | . . 35 Average 50 | . 68 39 Maximum Alert Level 1 | . 1 . Low Security (%) 90 | 100 86 100 Level 1 9 | . 13 . Level 2 . | . . . Level 3 . | . . . Level 4 . | . . . Level 5 . | . . . High Security . | . . . Max Security . | . . . Squads Dispatched . | . . . Investigation . | . . . Extermination . | . . . Reinforcement . | . . . Assault . | . . . Garrison . | . . . Intercept . | . . . Searches Triggered . | . . . Construction Impeded . | . . . Haulers Reinforced . | . . . Active Scanning Responses . | . . . Cargo Convoy Interrupts . | . . . Stealth | -11 -10 -10 --------- Run | Yrd Mat Min Distress Signals . | . . . Communications Jammed . | . . . Distress Signals . | . . . Times Spotted 35 | . 11 24 Peak Tracking Total 18 | . 4 18 Tactical Retreats . | . . . Traps | -11 -10 -10 ------- Run | Yrd Mat Min Traps Triggered . | . . . Indirectly . | . . . Trap Hack Attempts . | . . . Triggered . | . . . Disarmed . | . . . Reprogrammed . | . . . Reused . | . . . Traps Extracted . | . . . Installed . | . . . Triggered . | . . . Machines | -11 -10 -10 ---------- Run | Yrd Mat Min Machines Disabled 3 | . 3 . Max in Single Turn 1 | . 1 . Machines Repaired . | . . . Machines Dismantled . | . . . Machines Sabotaged . | . . . Overloaded Fab Kills . | . . . Hacking | -11 -10 -10 --------- Run | Yrd Mat Min Machines Accessed . | . . . Terminals . | . . . Fabricators . | . . . Repair Stations . | . . . Recycling Units . | . . . Scanalyzers . | . . . Garrison Access . | . . . Total Hacks . | . . . Successful . | . . . Failed . | . . . Catastrophic . | . . . Database Lockouts . | . . . Manual . | . . . Terminals . | . . . Fabricators . | . . . Repair Stations . | . . . Recycling Units . | . . . Scanalyzers . | . . . Garrison Access . | . . . Terminal Hacks . | . . . Fabricator Hacks . | . . . Repair Station Hacks . | . . . Recycling Unit Hacks . | . . . Scanalyzer . | . . . Garrison Access Hacks . | . . . Unauthorized Hacks . | . . . Terminals . | . . . Fabricators . | . . . Repair Stations . | . . . Recycling Units . | . . . Scanalyzers . | . . . Garrison Access . | . . . Data Cores Recovered . | . . . Used . | . . . Hacking Detections . | . . . Full Trace Events . | . . . Feedback Events . | . . . Feedback Blocked . | . . . Robot Schematics Acquired . | . . . Robots Built . | . . . Authchips . | . . . Time . | . . . Total Robot Build Rating . | . . . Part Schematics Acquired . | . . . Parts Built . | . . . Authchips . | . . . Time . | . . . Total Part Build Rating . | . . . Parts Repaired . | . . . Time . | . . . Parts Recycled . | . . . Recycled Matter . | . . . Retrieved Matter . | . . . Retrieved Components . | . . . Parts Scanalyzed . | . . . Part Schematics Acquired . | . . . Parts Damaged . | . . . Bothacking | -11 -10 -10 ------------ Run | Yrd Mat Min Used RIF Installer . | . . . Robots Hacked . | . . . Non-combat . | . . . Combat . | . . . Robot Hacks Applied . | . . . Relay Couplers Released . | . . . Fabnet Peak Effective % . | . . . Robots Rewired . | . . . Allies Hacked . | . . . Hacks Repelled . | . . . Allies | -11 -10 -10 -------- Run | Yrd Mat Min Total Allies . | . . . Largest Group . | . . . Highest-Rated Group . | . . . Highest-Rated Ally . | . . . Total Orders . | . . . Ally Attacks . | . . . Total Damage . | . . . Kills . | . . . Allies Corrupted . | . . . Allies Melted . | . . . Intel | -11 -10 -10 ------- Run | Yrd Mat Min Robot Analysis Total . | . . . Derelict Logs Recovered . | . . . Drone Launches . | . . . Drone Recoveries . | . . . Exploration | -11 -10 -10 ------------- Run | Yrd Mat Min Turns Passed 815 | 185 571 59 Spaces Moved 324 | 54 255 15 Core 15 | 15 . . Treads . | . . . Legs 309 | 39 255 15 Wheels . | . . . Hover . | . . . Flight . | . . . Fastest Speed 50 | 50 120 190 Average Speed 173 | 100 185 246 Slowest Speed 330 | 120 190 330 Overloaded Moves . | . . . Propulsion Burnouts . | . . . Robots Hopped . | . . . Cave-ins Triggered . | . . . Exploration Rate (%) 19 | 5 38 14 Regions Visited 2 Branch Regions 1 Pre-discovered Areas . | . . . Known Exits Taken . | . . . Unknown Exits Taken 2 | 1 1 . Scrap Searched . | . . . Spaces Dug . | . . . Terrain Destroyed 90 | . 73 17 Melee . | . . . Projectile . | . . . AOE 90 | . 73 17 Terrain Rammed . | . . . Walls Destroyed . | . . . Machines Disabled . | . . . Actions | -11 -10 -10 --------- Run | Yrd Mat Min Total 514 | 183 306 25 Wait 124 | 116 8 . Move 322 | 53 254 15 Hop . | . . . Pick Up 16 | 8 8 . Fast Attach 2 | 2 . . Attach 5 | 4 1 . Detach . | . . . Swap 6 | . 6 . Drop 3 | . 3 . Fire 29 | . 26 3 Melee . | . . . Ram 1 | . . 1 Kick 4 | . . 4 Crush . | . . . Escape Stasis . | . . . Rewire 2 | . . 2 Trap . | . . . Miscellaneous . | . . . Route ------- -11/Scrapyard -10/Materials -10/Mines (discovered 1 exit: [*Mat]) History --------- Turn | Location | Event 22 | -11/Scrapyard | Discovered new exit (range 16) 186 | -11/Scrapyard | Entered Materials 300 | -10/Materials | Build established: Mutant 742 | -10/Materials | Discovered new exit (range 9) 757 | -10/Materials | Entered Mines 758 | -10/Mines | Assembled infested the area 787 | -10/Mines | Met 8R-AWN 787 | -10/Mines | Discovered new exit (range 14) 792 | -10/Mines | Core integrity fell below 50% 811 | -10/Mines | Core integrity fell below 20% 816 | -10/Mines | Destroyed by G-34 Mercenary with Small Laser Last Messages --------------- 00799_ K-01 Serf collects debris. 00800_ U-05 Engineer builds a Wall. 00801_ Acquired 47 matter. 00802_ R-06 Scavenger collects Imp. Light Armor Plating. 00803_ K-01 Serf collects debris. 00805_ The unstable cave ceiling collapses. 00805_ R-06 Scavenger collects Wheel. 00806_ Grenade Launcher destroyed. 00807_ K-01 Serf collects debris. 00807_ Kicked G-47 Trooper out of the way. 00809_ R-06 Scavenger collects Terrain Scan Processor. 00810_ Kicked G-47 Trooper. 00810_ K-01 Serf collects debris. 00812_ Kicked G-47 Trooper. 00814_ Aluminum Leg destroyed. 00814_ K-01 Serf collects debris. 00814_ Ion Engine destroyed. 00815_ Slammed into G-47 Trooper. Map ----- +----------------------------------------------------+ | ??????????????????????????????????????????? | | ??????????????????????????????????????????? | | ????????????? ????????????????????????????? | | ???????????? ????????????????????????????? | | ????????????# ???????????????????????????? | | ????????????# ???????????????????????????? | | ???????????? ???????????????????????????? | | ????????????# ???????????????????????????? | | ????????##?## ???????????????????????????? | | ???????## ## ???????????????????????????? | | ???????# ???????????????????????????? | | ???????# ##?????????????????????????? | | ????????# ##????????##??????????????? | | ???????## #??????## ##?##??????????? | | ?????### gg#????? # #??????????? | | ????## ###### % ??????????? | | ????# # ?????????? | | ????# # % ?????????? | | ?????# a # % % ????????? | | ?????## #" ????????? | | ??????####??### #????????? | | ????????????# " #?????????? | | ???????????# # # # #????????? | | ???????????#### ## ##?? ?????????? | | ??????????????# ##!#####????? ????????????? | | ??????????????# g@#??????????????????????? | | ??????????????####g#??????????????????????? | | ?????????????????# #??????????????????????? | | ?????????????????# #??????????????????????? | | ?????????????????# #??????????????????????? | | ????????????????? ??????????????????????? | | ????????????????? ??????????????????????? | | ?????????????????